fUSD/lending_fUSD_20240825
["ID","MTS","AMOUNT","RATE_DAILY","PERIOD"]
[335938228,1724625038349,-500.0,0.00010989,2]
[335938229,1724625038358,-500.0,0.00010989,2]
[335938230,1724625038367,-398.34165851,0.00010989,2]
[335938231,1724625038377,-500.0,0.00010989,2]
[335938232,1724625038386,-500.0,0.00010989,2]
[335938233,1724625038395,-500.0,0.00010989,2]
[335938234,1724625038405,-500.0,0.00010989,2]
[335938235,1724625038415,-500.0,0.00010989,2]
[335938236,1724625038424,-500.0,0.00010989,2]
[335938238,1724625038434,-500.0,0.00010989,2]
[335938240,1724625038443,-500.0,0.00010989,2]
[335938242,1724625038452,-500.0,0.00010989,2]
[335938244,1724625038461,-1746.18,0.00010989,2]
[335938246,1724625038470,-1746.18,0.00010989,2]
[335938248,1724625038479,-3541.76196441,0.0001099,3]
[335938250,1724625038491,-1240.3537254,0.0001099,3]
[335938253,1724625038502,-500.0,0.0001099,3]
[335938254,1724625038512,-903.614,0.0001099,3]
[335938259,1724625040251,-500.0,0.00010665,2]
[335938260,1724625040261,-625.26276512,0.000109,2]
[335938261,1724625040270,-167.61183604,0.0001099,3]
[335938262,1724625040406,-334265.85193283,0.0001099,3]
[335938263,1724625040492,-14686.16349832,0.0001099,3]
[335938264,1724625040502,-527.29898033,0.00010993,2]
[335938265,1724625040511,-169.52892449,0.00010997,2]
[335938266,1724625040520,-500.0,0.00010998,2]
[335938267,1724625040530,-657.98,0.00010998,2]
[335938269,1724625040539,-638.52408179,0.00010999,2]
[335938271,1724625040548,-1000.0,0.00010999,2]
[335938272,1724625040557,-1000.0,0.00010999,2]
[335938273,1724625040566,-1000.0,0.00010999,2]
[335938274,1724625040575,-1000.0,0.00010999,2]
[335938275,1724625040585,-1000.0,0.00010999,2]
[335938276,1724625040594,-1000.0,0.00010999,2]
[335938277,1724625040603,-500.0,0.00010999,2]
[335938278,1724625040612,-500.0,0.00010999,2]
[335938279,1724625040621,-500.0,0.00010999,2]
[335938280,1724625040630,-500.0,0.00010999,2]
[335938281,1724625040640,-500.0,0.00010999,2]
[335938282,1724625040648,-500.0,0.00010999,2]
[335938283,1724625040658,-500.0,0.00010999,2]
[335938284,1724625040667,-500.0,0.00010999,2]
[335938285,1724625040677,-500.0,0.00010999,2]
[335938286,1724625040686,-500.0,0.00010999,2]
[335938287,1724625040695,-500.0,0.00010999,2]
[335938288,1724625040708,-500.0,0.00010999,2]
[335938289,1724625040717,-500.0,0.00010999,2]
[335938290,1724625040726,-500.0,0.00010999,2]
[335938291,1724625040737,-500.0,0.00010999,2]
[335938292,1724625040749,-282.15028999,0.00010999,2]
[335938293,1724625040758,-1069.49,0.00010999,2]
[335938294,1724625040767,-1069.49,0.00010999,2]
[335938295,1724625040777,-1069.49,0.00010999,2]
[335938296,1724625040790,-1069.49,0.00010999,2]
[335938297,1724625040799,-19.3627251,0.00010999,2]
[335938298,1724625040811,-347.50656736,0.00010999,2]
[335938299,1724625041265,500.0,0.00027,120]
[335938317,1724625043177,-702.62070754,0.00010999,2]
[335938318,1724625043188,-1069.49,0.00010999,2]
[335938319,1724625043197,-1069.49,0.00010999,2]
[335938321,1724625043207,-1069.49,0.00010999,2]
[335938322,1724625043216,-1069.49,0.00010999,2]
[335938323,1724625043226,-1069.49,0.00010999,2]
[335938324,1724625043235,-1069.49,0.00010999,2]
[335938325,1724625043245,-1069.49,0.00010999,2]
[335938326,1724625043254,-310.94929246,0.00010999,2]
[335938327,1724625043275,-758.54070754,0.00010999,2]
[335938328,1724625043287,-1069.49,0.00010999,2]
[335938329,1724625043298,-1069.49,0.00010999,2]
[335938330,1724625043308,-1069.49,0.00010999,2]
[335938331,1724625043318,-1069.49,0.00010999,2]
[335938332,1724625043327,-1069.49,0.00010999,2]
[335938333,1724625043337,-1069.49,0.00010999,2]
[335938334,1724625043346,-1069.49,0.00010999,2]
[335938335,1724625043357,-1069.49,0.00010999,2]
[335938336,1724625043368,-1069.49,0.00010999,2]
[335938337,1724625043377,-1069.49,0.00010999,2]
[335938338,1724625043387,-1069.54195008,0.00010999,2]
[335938339,1724625043396,-500.0,0.00010999,2]
[335938340,1724625043406,-500.0,0.00010999,2]
[335938341,1724625043415,-500.0,0.00010999,2]
[335938342,1724625043427,-500.0,0.00010999,2]
[335938343,1724625043437,-500.0,0.00010999,2]
[335938344,1724625043447,-500.0,0.00010999,2]
[335938345,1724625043457,-351.52064713,0.00010999,2]
[335938346,1724625043466,-500.0,0.00010999,2]
[335938347,1724625043475,-500.0,0.00010999,2]
[335938348,1724625043485,-500.0,0.00010999,2]
[335938349,1724625043497,-500.0,0.00010999,2]
[335938350,1724625043506,-500.0,0.00010999,2]
[335938351,1724625043516,-500.0,0.00010999,2]
[335938352,1724625043525,-500.0,0.00010999,2]
[335938353,1724625043535,-500.0,0.00010999,2]
[335938354,1724625043544,-500.0,0.00010999,2]
[335938355,1724625043553,-500.0,0.00010999,2]
[335938356,1724625043562,-500.0,0.00010999,2]
[335938357,1724625043572,-500.0,0.00010999,2]
[335938358,1724625043581,-500.0,0.00010999,2]
[335938359,1724625043590,-568.57792553,0.00010999,2]
[335938360,1724625043601,-1746.18,0.00010999,2]
[335938361,1724625043612,-1746.18,0.00010999,2]
[335938362,1724625043622,-1746.18,0.00010999,2]
[335938363,1724625043631,-1597.26658307,0.00010999,2]
[335938364,1724625043644,-148.91341693,0.00010999,2]
[335938365,1724625043654,-658.03658267,0.00010999,2]
[335938366,1724625043669,-1088.14341733,0.00010999,2]
[335938367,1724625043679,-1746.18,0.00010999,2]
[335938368,1724625043688,-1746.18,0.00010999,2]
[335938369,1724625043698,-1746.18,0.00010999,2]
[335938370,1724625043708,-1746.18,0.00010999,2]
[335938371,1724625043717,-1746.18,0.00010999,2]
[335938372,1724625043727,-997.57017175,0.00010999,2]
[335938373,1724625043742,-748.60982825,0.00010999,2]
[335938374,1724625043752,-1746.18,0.00010999,2]
[335938375,1724625043762,-1746.18,0.00010999,2]
[335938376,1724625043772,-1746.18,0.00010999,2]
[335938377,1724625043781,-494.18697175,0.00010999,2]
[335938379,1724625045946,-625.26276505,0.000109,2]
[335938380,1724625045955,-307.91218468,0.00010999,2]
[335938381,1724625046038,-944.08084357,0.00010999,2]
[335938382,1724625046048,-1746.18,0.00010999,2]
[335938383,1724625046057,-1746.18,0.00010999,2]
[335938384,1724625046068,-1746.18,0.00010999,2]
[335938385,1724625046077,-1746.18,0.00010999,2]
[335938386,1724625046087,-1746.18,0.00010999,2]
[335938387,1724625046098,-1746.18,0.00010999,2]
[335938388,1724625046107,-1746.37,0.00010999,2]
[335938389,1724625046116,-500.0,0.00010999,2]
[335938390,1724625046126,-500.0,0.00010999,2]
[335938391,1724625046135,-500.0,0.00010999,2]
[335938392,1724625046145,-500.0,0.00010999,2]
[335938393,1724625046155,-500.0,0.00010999,2]
[335938394,1724625046163,-500.0,0.00010999,2]
[335938395,1724625046178,-500.0,0.00010999,2]
[335938396,1724625046187,-500.0,0.00010999,2]
[335938397,1724625046196,-500.0,0.00010999,2]
[335938398,1724625046205,-500.0,0.00010999,2]
[335938399,1724625046214,-500.0,0.00010999,2]
[335938400,1724625046224,-556.8896,0.00010999,2]
[335938404,1724625046367,-657.98,0.00010999,2]
[335938405,1724625046384,-657.98,0.00010999,2]
[335938406,1724625046394,-657.98,0.00010999,2]
[335938407,1724625046403,-657.98,0.00010999,2]
[335938408,1724625046414,-632.85,0.00010999,2]
[335938409,1724625046423,-657.98,0.00010999,2]
[335938410,1724625046432,-632.85,0.00010999,2]
[335938411,1724625046442,-657.98,0.00010999,2]
[335938412,1724625046453,-632.85,0.00010999,2]
[335938413,1724625046463,-657.98,0.00010999,2]
[335938414,1724625046473,-657.98,0.00010999,2]
[335938415,1724625046482,-632.85,0.00010999,2]
[335938416,1724625046491,-594.50489552,0.00010999,2]
[335938417,1724625046511,-63.47510448,0.00010999,2]
[335938418,1724625046520,-632.85,0.00010999,2]
[335938419,1724625046528,-632.85,0.00010999,2]
[335938420,1724625046536,-632.85,0.00010999,2]
[335938421,1724625046545,-657.98,0.00010999,2]
[335938422,1724625046555,-632.85,0.00010999,2]
[335938423,1724625046564,-657.98,0.00010999,2]
[335938424,1724625046574,-632.85,0.00010999,2]
[335938425,1724625046584,-657.98,0.00010999,2]
[335938426,1724625046593,-632.85,0.00010999,2]
[335938427,1724625046602,-57.90449552,0.00010999,2]
[335938428,1724625060573,500.0,0.00027,120]
[335938429,1724625066864,500.0,0.00027,120]
[335938431,1724625195314,378.6,8.219e-05,2]
[335938432,1724625206207,500.0,0.0002597,120]
[335938433,1724625231580,200.0,0.0002618,120]
[335938434,1724625264590,250.0,9.957e-05,2]
[335938443,1724625366172,1003.16,9.909e-05,2]
[335938445,1724625426788,800.0,0.00026986,120]
[335938446,1724625431477,200.0,9.869e-05,2]
[335938448,1724625679977,359.67,8.219e-05,2]
[335938449,1724625682807,341.81,0.00027,120]
[335938450,1724625703977,486.93,9.787e-05,2]
[335938451,1724625781054,250.0,9.76e-05,2]
[335938452,1724625796322,2000.0,0.00026849,120]
[335938453,1724625796682,2000.0,0.00026849,120]
[335938454,1724625807515,500.0,0.00024932,120]
[335938455,1724625831372,200.0,0.00025302,120]
[335938456,1724625850621,2671.68,9.739e-05,2]
[335938457,1724625944281,1050.0,0.0001,2]
[335938458,1724625962506,15563.77,9.712e-05,2]
[335938459,1724625974955,840.0,9.712e-05,2]
[335938460,1724625977321,150.71639531,9.888e-05,2]
[335938461,1724625980608,500.0,0.00027,120]
[335938462,1724626054345,1000.0,9.704e-05,2]
[335938463,1724626074255,173.34,9.703e-05,2]
[335938464,1724626196559,365.02,8.219e-05,2]
[335938471,1724626232104,-365.02,0.00010461,2]
[335938472,1724626232113,-528.11113729,0.00010471,2]
[335938473,1724626232123,-500.0,0.00010506,2]
[335938474,1724626232132,-500.0,0.00010515,2]
[335938475,1724626232141,-150.0,0.00010521,2]
[335938476,1724626232150,-500.0,0.00010524,2]
[335938477,1724626232159,-500.0,0.00010533,2]
[335938478,1724626232170,-500.0,0.00010541,2]
[335938479,1724626232179,-500.0,0.0001055,2]
[335938480,1724626232188,-500.0,0.00010559,2]
[335938481,1724626232198,-500.0,0.00010568,2]
[335938482,1724626232207,-293.33,0.00010572,2]
[335938483,1724626232216,-500.0,0.00010577,2]
[335938484,1724626232225,-500.0,0.00010585,2]
[335938485,1724626232234,-500.0,0.00010594,2]
[335938486,1724626232244,-500.0,0.00010603,2]
[335938487,1724626232253,-500.0,0.00010612,2]
[335938488,1724626232262,-500.0,0.00010621,2]
[335938489,1724626232272,-500.0,0.00010629,2]
[335938490,1724626232281,-500.0,0.00010638,2]
[335938491,1724626232291,-500.0,0.00010647,2]
[335938492,1724626232300,-300.0,0.00010654,2]
[335938493,1724626232309,-500.0,0.00010656,2]
[335938494,1724626232319,-1000.0,0.000107,2]
[335938495,1724626232328,-482.5109,0.000107,2]
[335938496,1724626232338,-1361.24369803,0.00010742,2]
[335938497,1724626232347,-500.0,0.00010773,2]
[335938498,1724626232356,-150.0,0.00010773,2]
[335938499,1724626232366,-234083.69520817,0.000108,2]
[335938500,1724626232381,-1409.39774727,0.000108,2]
[335938501,1724626232392,-535.8515108,0.000108,2]
[335938502,1724626232403,-669.94125223,0.000108,2]
[335938503,1724626232416,-959.0,0.000108,2]
[335938504,1724626232427,-4389.71388745,0.000108,2]
[335938505,1724626232442,-2584.73800879,0.000108,2]
[335938506,1724626232453,-609.67999998,0.000108,2]
[335938507,1724626232464,-2122.23370674,0.000108,2]
[335938508,1724626232475,-600.0,0.000108,2]
[335938509,1724626232486,-571.61940899,0.000108,2]
[335938510,1724626232497,-1908.19961553,0.000108,2]
[335938511,1724626232508,-307.8334,0.000108,2]
[335938512,1724626232519,-5371.78642001,0.000108,2]
[335938513,1724626232530,-1000.0,0.000108,2]
[335938514,1724626232545,-2743.0,0.000108,2]
[335938522,1724626238188,-319.8,0.000108,2]
[335938524,1724626238199,-7991.34343518,0.000108,2]
[335938526,1724626238210,-32211.70718728,0.000108,2]
[335938528,1724626238221,-6912.47775104,0.000108,2]
[335938531,1724626238232,-25299.15984209,0.000108,2]
[335938533,1724626238242,-468.50164004,0.000108,2]
[335938536,1724626238298,-382.86005199,0.000108,2]
[335938537,1724626238309,-668.26362144,0.000108,2]
[335938538,1724626238320,-1849.01762945,0.000108,2]
[335938539,1724626238331,-617.53495818,0.000108,2]
[335938540,1724626238342,-795.0000001,0.000108,2]
[335938541,1724626238353,-4070.08297907,0.000108,2]
[335938542,1724626238365,-25848.75990767,0.000108,2]
[335938543,1724626238375,-1500.0,0.00010862,2]
[335938544,1724626238384,-370.51643875,0.00010862,2]
[335938545,1724626238393,-1500.0,0.00010888,2]
[335938546,1724626238404,-1500.0,0.00010889,2]
[335938547,1724626238413,-296.1084,0.00010889,2]
[335938548,1724626238424,-179.48647,0.0001089,2]
[335938549,1724626238433,-29729.52212386,0.0001089,2]
[335938550,1724626238444,-29405.59629533,0.0001089,2]
[335938551,1724626238456,-2730.40354718,0.0001089,2]
[335938552,1724626238467,-181384.07963363,0.0001089,2]
[335938553,1724626238476,-1177.57781456,0.00010896,2]
[335938554,1724626238485,-28076.72740113,0.00010899,2]
[335938555,1724626238495,-28076.72740108,0.00010899,2]
[335938565,1724626238649,-28076.72740108,0.00010899,2]
[335938567,1724626238670,-28076.72740108,0.00010899,2]
[335938569,1724626238679,-28076.72740108,0.00010899,2]
[335938571,1724626238688,-28076.72740108,0.00010899,2]
[335938573,1724626238698,-28076.72740108,0.00010899,2]
[335938575,1724626238707,-28076.72740108,0.00010899,2]
[335938577,1724626238715,-761.8685,0.000109,2]
[335938579,1724626238724,-500.0,0.000109,2]
[335938581,1724626238735,-346.0545,0.000109,2]
[335938583,1724626238744,-74236.7715,0.000109,2]
[335938585,1724626238753,-1000.0,0.000109,2]
[335938586,1724626238762,-2324.21109593,0.000109,2]
[335938587,1724626238772,-167.14666384,0.000109,2]
[335938588,1724626238781,-399.17925032,0.000109,2]
[335938589,1724626238790,-468.94707384,0.000109,2]
[335938590,1724626238798,-468.94707378,0.000109,2]
[335938591,1724626238807,-468.94707378,0.000109,2]
[335938592,1724626238816,-468.94707378,0.000109,2]
[335938593,1724626238825,-468.94707378,0.000109,2]
[335938594,1724626238834,-500.0,0.00010912,2]
[335938595,1724626238843,-840.0,0.00010926,2]
[335938596,1724626238852,-500.0,0.00010958,2]
[335938597,1724626238861,-500.0,0.00010958,2]
[335938598,1724626238870,-500.0,0.00010958,2]
[335938599,1724626238879,-500.0,0.00010958,2]
[335938600,1724626238888,-500.0,0.00010958,2]
[335938601,1724626238897,-500.0,0.00010958,2]
[335938602,1724626238907,-500.0,0.00010958,2]
[335938603,1724626238916,-500.0,0.00010958,2]
[335938604,1724626238928,-174.83416585,0.00010958,2]
[335938605,1724626238937,-500.0,0.00010958,2]
[335938606,1724626238946,-500.0,0.00010958,2]
[335938607,1724626238955,-500.0,0.00010958,2]
[335938608,1724626238964,-442.9,0.00010958,2]
[335938609,1724626238974,-500.0,0.00010958,2]
[335938610,1724626238983,-500.0,0.00010958,2]
[335938611,1724626238993,-185.47573119,0.00010958,2]
[335938612,1724626239002,-500.0,0.00010958,2]
[335938613,1724626239011,-363.43985544,0.00010958,2]
[335938614,1724626239020,-500.0,0.00010958,2]
[335938615,1724626239029,-500.0,0.00010958,2]
[335938616,1724626239038,-500.0,0.00010958,2]
[335938617,1724626239047,-500.0,0.00010958,2]
[335938618,1724626239055,-500.0,0.00010958,2]
[335938619,1724626239065,-200.0,0.00010959,2]
[335938620,1724626239074,-170.43,0.00010959,2]
[335938621,1724626239083,-160.22,0.00010959,2]
[335938622,1724626239092,-464.05,0.00010959,2]
[335938623,1724626239101,-150.0,0.00010959,2]
[335938624,1724626239110,-1500.0,0.00010959,2]
[335938625,1724626239119,-250.0,0.00010959,2]
[335938626,1724626239129,-208.82926497,0.00010973,2]
[335938627,1724626239138,-500.0,0.00010973,2]
[335938628,1724626239147,-500.0,0.00010973,2]
[335938629,1724626239157,-631.27958502,0.00010973,2]
[335938630,1724626239166,-500.0,0.00010973,2]
[335938631,1724626239184,-3387.16834659,0.00010989,2]
[335938632,1724626239194,-1387.13397749,0.00010989,2]
[335938633,1724626239202,-9420.62251648,0.00010997,2]
[335938634,1724626239212,-1000.0,0.00010999,2]
[335938635,1724626239221,-531.33335,0.00010999,2]
[335938636,1724626239230,-500.0,0.00010999,2]
[335938637,1724626239239,-500.0,0.00010999,2]
[335938638,1724626239248,-500.0,0.00010999,2]
[335938639,1724626239257,-500.0,0.00010999,2]
[335938640,1724626239266,-500.0,0.00010999,2]
[335938641,1724626239275,-500.0,0.00010999,2]
[335938642,1724626239285,-500.0,0.00010999,2]
[335938643,1724626239293,-500.0,0.00010999,2]
[335938644,1724626239303,-500.0,0.00010999,2]
[335938645,1724626239313,-500.0,0.00010999,2]
[335938646,1724626239322,-500.0,0.00010999,2]
[335938647,1724626239331,-500.0,0.00010999,2]
[335938648,1724626239340,-500.0,0.00010999,2]
[335938649,1724626239350,-302.17563038,0.00010999,2]
[335938650,1724626239359,-848336.82385514,0.00011,2]
[335938651,1724626239372,-305978.83877592,0.00011,2]
[335938652,1724626239383,-311.21120683,0.00011,2]
[335938655,1724626240743,-233712.87297302,0.00011,2]
[335938660,1724626240894,-58096.69761641,0.00011,2]
[335938661,1724626240957,-28076.72740108,0.00010899,2]
[335938662,1724626240967,-203651.37780848,0.00011,2]
[335938663,1724626240976,-184686.20870205,0.00011,2]
[335938664,1724626240987,-3291.39065368,0.00011,2]
[335938665,1724626240998,-644.10641409,0.00011,2]
[335938666,1724626241009,-839.91,0.00011,2]
[335938667,1724626241020,-1159658.61328137,0.00011,2]
[335938668,1724626241031,-24001.74223655,0.00011,2]
[335938669,1724626241042,-392.85540526,0.00011,2]
[335938670,1724626241053,-2409.35153101,0.00011,2]
[335938671,1724626241064,-678.75769103,0.00011,2]
[335938672,1724626241076,-15240.96322548,0.00011,2]
[335938673,1724626241088,-42222.75,0.00011,2]
[335938674,1724626241098,-1396.69046004,0.00011,2]
[335938675,1724626241109,-2999.08700833,0.00011,2]
[335938676,1724626241121,-891.51412651,0.00011,2]
[335938677,1724626241131,-1092.27862809,0.00011,2]
[335938678,1724626241147,-2152748.02409905,0.00011,2]
[335938679,1724626241157,-391146.0550541,0.00011,2]
[335938680,1724626241166,-1569169.69977607,0.00011,2]
[335938681,1724626241177,-645979.00785568,0.00011,2]
[335938682,1724626241186,-257.45729544,0.00011,10]
[335938683,1724626241196,-1054.82766921,0.00011,2]
[335938684,1724626241205,-1209920.8440141,0.00011,2]
[335938685,1724626241214,-204747.42561908,0.00011,2]
[335938686,1724626241223,-3867487.64428086,0.00011,2]
[335938687,1724626241234,-3221424.65008751,0.00011,2]
[335938688,1724626241242,-223538.13345539,0.00011,2]
[335938689,1724626241251,-194447.40029003,0.00011,2]
[335938690,1724626241260,-1805017.88168098,0.00011,2]
[335938691,1724626241272,-1367.59375518,0.00011,2]
[335938692,1724626241283,-1225.9364753,0.00011,2]
[335938693,1724626241294,-1548.34307602,0.00011,2]
[335938694,1724626241304,-509.73860691,0.00011,2]
[335938695,1724626241316,-649.02,0.00011,2]
[335938696,1724626241326,-607.5499219,0.00011,2]
[335938697,1724626241338,-549.4485,0.00011,2]
[335938698,1724626241349,-991.46458985,0.00011,2]
[335938707,1724626243206,-356.68,0.00010959,2]
[335938708,1724626243216,-475.60687525,0.00011,2]
[335938709,1724626243228,-3401.48620004,0.00011,2]
[335938710,1724626243313,-636.82035561,0.00011,2]
[335938714,1724626243838,-986.7205483,0.00011,2]
[335938715,1724626243850,-800.90047991,0.00011,2]
[335938716,1724626243861,-1098.74356347,0.00011,2]
[335938717,1724626243878,-11339.79333542,0.000109,2]
[335938718,1724626246293,-3144.75596649,0.000109,2]
[335938719,1724626246305,-13592.17809917,0.000109,2]
[335938720,1724626246315,-12358.25659613,0.00011,2]
[335938721,1724626246327,-60712.14150242,0.00011,2]
[335938722,1724626246339,-11136.41285363,0.00011,2]
[335938723,1724626246353,-253.52,0.00011,2]
[335938724,1724626246365,-1482.59,0.00011,2]
[335938725,1724626246377,-4492.40548952,0.00011,2]
[335938726,1724626246456,-398.4828563,0.00011,2]
[335938727,1724626318616,598.318,0.00027,120]
[335938728,1724626398819,2000.0,0.00026849,120]
[335938729,1724626399324,2000.0,0.00026849,120]
[335938730,1724626407814,500.0,0.00024932,120]
[335938731,1724626427644,200.0,0.00026515,120]
[335938732,1724626682639,376.15,8.219e-05,2]
[335938733,1724626826036,7237.78514919,9.962e-05,2]
[335938734,1724626910939,500.0,0.00027,120]
[335938735,1724626948112,243.46,9.922e-05,2]
[335938736,1724626950048,250.0,9.922e-05,2]
[335938737,1724626989958,307.97477197,9.922e-05,2]
[335938738,1724626996847,2000.0,0.00026849,120]
[335938739,1724626997312,2000.0,0.00026849,120]
[335938740,1724627004619,500.0,0.00024932,120]
[335938741,1724627006539,159.19741528,9.922e-05,2]
[335938742,1724627020204,3074.12158258,9.922e-05,2]
[335938743,1724627025898,200.0,0.00025628,120]
[335938744,1724627025954,504.0,9.914e-05,2]
[335938745,1724627029226,1269.04856902,9.922e-05,2]
[335938746,1724627034831,694.05179249,9.922e-05,2]
[335938747,1724627040976,11899.31493316,9.922e-05,2]
[335938748,1724627049447,309.44632513,0.00025,90]
[335938749,1724627071637,234.66,9.905e-05,2]
[335938750,1724627097949,309.44632513,0.00025,90]
[335938751,1724627119186,1073.4767841,9.905e-05,2]
[335938752,1724627144957,291.36870266,9.905e-05,2]
[335938753,1724627149465,309.44632513,0.00025,90]
[335938754,1724627151009,20413.47648282,9.905e-05,2]
[335938755,1724627153797,10537.92195993,9.993e-05,2]
[335938756,1724627157681,150.0,9.888e-05,2]
[335938757,1724627164832,694.05179249,9.905e-05,2]
[335938758,1724627175180,383.65,8.219e-05,2]
[335938759,1724627198329,691.84206277,9.962e-05,2]
[335938760,1724627208954,309.44632513,0.00025,90]
[335938761,1724627226201,949.53752999,9.962e-05,2]
[335938762,1724627230991,3435.86055222,8.219e-05,2]
[335938763,1724627254542,347.69615481,0.00010009,2]
[335938764,1724627309387,256.72459399,9.962e-05,2]
[335938766,1724627321990,309.44632513,0.00025,90]
[335938768,1724627328793,311.3510429,0.00010009,2]
[335938769,1724627331755,1051.32949098,0.00010009,2]
[335938770,1724627348277,413.39640966,0.00010009,2]
[335938777,1724627432332,-208.11860464,0.00010088,2]
[335938779,1724627432342,-163.33,0.00010093,2]
[335938781,1724627432351,-496.0,0.00010189,2]
[335938783,1724627432360,-173.77,0.00010384,2]
[335938785,1724627432370,-950.60041889,0.0001045,2]
[335938788,1724627432382,-2494.30661419,0.0001045,2]
[335938790,1724627432392,-383.65,0.00010473,2]
[335938792,1724627432401,-208.11860463,0.000105,2]
[335938794,1724627432410,-3035.66705251,0.00010505,2]
[335938796,1724627432420,-150.0,0.00010599,2]
[335938798,1724627432430,-300.0,0.00010599,2]
[335938800,1724627432440,-34930.9169,0.000106,2]
[335938802,1724627432449,-2681.87004842,0.000106,2]
[335938804,1724627432460,-381.23240738,0.000106,2]
[335938805,1724627432471,-1238.2425442,0.000106,2]
[335938806,1724627432480,-449.5209,0.000106,2]
[335938807,1724627432490,-365.01956981,0.000106,2]
[335938808,1724627432508,-502.90722895,0.000106,2]
[335938809,1724627432519,-516.47725402,0.000106,2]
[335938810,1724627432533,-3535.67094722,0.000106,2]
[335938811,1724627432544,-2500.0,0.000106,2]
[335938812,1724627432553,-299.99,0.00010699,2]
[335938813,1724627432564,-4913.7551,0.000107,2]
[335938814,1724627432574,-1684.06329326,0.000107,2]
[335938815,1724627432585,-55309.58290316,0.000107,2]
[335938816,1724627432596,-8311.72992793,0.000107,2]
[335938817,1724627432608,-865.31617129,0.000107,2]
[335938818,1724627432620,-33489.52770436,0.000107,2]
[335938819,1724627432629,-1106.36418267,0.000107,2]
[335938820,1724627432639,-994.87575444,0.000107,2]
[335938821,1724627432654,-16152.42322272,0.000107,2]
[335938822,1724627432665,-8529.42497305,0.000107,2]
[335938823,1724627432676,-684.71908266,0.000107,2]
[335938830,1724627438475,-306.42367944,0.000107,2]
[335938831,1724627438487,-310.24010705,0.000107,2]
[335938832,1724627438499,-6022.5791488,0.000107,2]
[335938833,1724627438510,-2678.81991425,0.000107,2]
[335938834,1724627438522,-1114.47748706,0.000107,2]
[335938835,1724627438533,-655.43194,0.000107,2]
[335938836,1724627438544,-1544.13920201,0.000107,2]
[335938837,1724627438556,-815.0,0.000107,2]
[335938838,1724627438567,-620.0,0.000107,2]
[335938839,1724627438578,-27439.2975376,0.000107,2]
[335938840,1724627438590,-563.31326908,0.000107,2]
[335938841,1724627438601,-428.61941707,0.000107,2]
[335938842,1724627438618,-329.43847413,0.000107,2]
[335938843,1724627438629,-14378.75692096,0.000107,2]
[335938844,1724627438649,-106885.86143058,0.000107,2]
[335938845,1724627438659,-999.51079997,0.000107,2]
[335938846,1724627438670,-514.74031448,0.000107,2]
[335938847,1724627438681,-867.57638522,0.000107,2]
[335938848,1724627438692,-7293.58596012,0.000107,2]
[335938849,1724627438705,-8233.67288528,0.000107,2]
[335938850,1724627438716,-7457.2856901,0.000107,2]
[335938851,1724627438778,-27793.40732126,0.000107,2]
[335938852,1724627438787,-500.0,0.000107,2]
[335938853,1724627438797,-687.03,0.000107,2]
[335938854,1724627438806,-3532.94625659,0.00010713,2]
[335938855,1724627438815,-155.36400518,0.00010713,2]
[335938857,1724627438825,-150.0,0.0001073,2]
[335938859,1724627438835,-515.81013922,0.00010734,2]
[335938861,1724627438844,-150.0,0.00010734,2]
[335938863,1724627438854,-150.0,0.00010745,2]
[335938865,1724627438863,-150.0,0.00010748,2]